bitfinex-derivatives/quotes_BTCF0:USTF0_20250130
["timestamp","ask_amount","ask_price","bid_price","bid_amount"]
[1738201945227,0.00314398,104280.0,104270.0,0.78113167]
[1738201945425,0.00314398,104280.0,104270.0,0.88725579]
[1738201946623,0.00314398,104280.0,104270.0,0.89676408]
[1738201948926,0.11495003,104290.0,104270.0,0.8610692]
[1738201949124,0.11180605,104290.0,104280.0,0.76484824]
[1738201949325,0.14413538,104300.0,104290.0,0.191782]
[1738201949625,0.14413538,104300.0,104290.0,0.70510612]
[1738201950933,0.14513538,104300.0,104290.0,0.70510612]
[1738201952022,0.14913538,104300.0,104290.0,0.70510612]
[1738201952933,0.00643886,104300.0,104290.0,0.93361879]
[1738201953432,0.00643886,104300.0,104290.0,0.94328647]
[1738201953828,0.00543886,104300.0,104290.0,0.94328647]
[1738201954033,0.00343886,104300.0,104290.0,0.94328647]
[1738201954725,0.00343886,104300.0,104290.0,2.44328647]
[1738201956735,0.00343886,104300.0,104290.0,2.2147738]
[1738201967732,0.002,104300.0,104290.0,2.2147738]
[1738201968328,0.00014398,104310.0,104300.0,0.191764]
[1738201968544,0.33440552,104330.0,104320.0,0.191727]
[1738201968743,0.33440552,104330.0,104320.0,0.552527]
[1738201969841,0.44452964,104330.0,104320.0,0.192727]
[1738201970142,0.44452964,104330.0,104320.0,0.001]
[1738201972536,0.80532964,104330.0,104320.0,0.001]
[1738201973341,0.44452964,104330.0,104320.0,0.001]
[1738201973545,0.80532964,104330.0,104320.0,0.001]
[1738201974339,0.66263312,104330.0,104320.0,0.001]
[1738201978144,0.80532964,104330.0,104320.0,0.001]
[1738201981649,0.38484552,104330.0,104320.0,0.001]
[1738201981851,0.242149,104330.0,104320.0,0.001]
[1738201982047,0.242149,104330.0,104320.0,1.501]
[1738201982551,0.195709,104330.0,104320.0,0.001]
[1738201982849,0.004,104330.0,104320.0,0.29885112]
[1738201983057,0.004,104330.0,104320.0,0.33295112]
[1738201983058,0.05044,104330.0,104320.0,0.33295112]
[1738201983260,0.004,104330.0,104320.0,0.74375112]
[1738201983754,0.00014398,104340.0,104330.0,0.191708]
[1738201983956,0.00014398,104340.0,104330.0,0.72853212]
[1738201984746,0.00014398,104340.0,104330.0,0.78853212]
[1738201988652,0.00014398,104340.0,104330.0,2.2980194]
[1738201988857,0.00014398,104340.0,104330.0,0.7980194]
[1738201991359,0.00014398,104340.0,104330.0,1.02653207]
[1738201993358,0.00014398,104340.0,104330.0,0.92040795]
[1738201993551,0.00014398,104340.0,104330.0,1.02653207]
[1738201995561,0.19183398,104340.0,104330.0,0.7980194]
[1738201996150,0.00014398,104340.0,104330.0,0.7980194]
[1738202002963,0.00014398,104340.0,104330.0,0.96877027]
[1738202004866,0.00143814,104350.0,104330.0,2.27706227]
[1738202005056,0.00143814,104350.0,104340.0,0.65861412]
[1738202005258,0.00143814,104350.0,104340.0,0.70761412]
[1738202011965,0.00143814,104350.0,104340.0,0.87836499]
[1738202016672,0.00143814,104350.0,104340.0,0.91115391]
[1738202017665,0.31727744,104350.0,104340.0,0.74040304]
[1738202020270,0.31727744,104350.0,104340.0,0.67094652]
[1738202020470,0.50894944,104350.0,104340.0,0.67094652]
[1738202021875,0.31727744,104350.0,104340.0,0.74040304]
[1738202024071,0.31727744,104350.0,104340.0,0.67094652]
[1738202024475,0.31727744,104350.0,104340.0,0.74040304]
[1738202026488,0.31727744,104350.0,104340.0,0.67094652]
[1738202026690,0.31727744,104350.0,104340.0,0.74040304]
[1738202026989,0.31727744,104350.0,104340.0,0.67094652]
[1738202028084,0.11643299,104350.0,104340.0,1.49419936]
[1738202029591,0.11643299,104350.0,104340.0,1.56365588]
[1738202030185,0.11643299,104350.0,104340.0,1.49419936]
[1738202031593,0.14500146,104350.0,104340.0,0.84270907]
[1738202032188,0.14500146,104350.0,104340.0,0.91216559]
[1738202032593,0.14500146,104350.0,104340.0,0.84270907]
[1738202032788,0.14500146,104350.0,104340.0,0.91216559]
[1738202034499,0.14500146,104350.0,104340.0,0.84270907]
[1738202035903,0.14500146,104350.0,104340.0,1.07122174]
[1738202036102,0.14500146,104350.0,104340.0,1.14067826]
[1738202036407,0.14500146,104350.0,104340.0,1.07122174]
[1738202039305,0.14500146,104350.0,104340.0,1.26735322]
[1738202039306,0.2027126,104350.0,104340.0,1.26735322]
[1738202044001,0.08769862,104350.0,104340.0,1.26735322]
[1738202045004,0.08769862,104350.0,104340.0,1.1978967]
[1738202045204,0.08769862,104350.0,104340.0,1.26735322]
[1738202048206,0.2027126,104350.0,104340.0,1.26735322]
[1738202051704,0.2027126,104350.0,104340.0,1.33680974]
[1738202051906,0.2027126,104350.0,104340.0,1.26735322]
[1738202052896,0.3943846,104350.0,104340.0,1.26735322]
[1738202053098,0.3943846,104350.0,104340.0,1.1978967]
[1738202053400,0.3943846,104350.0,104340.0,1.1588967]
[1738202053709,0.4257846,104350.0,104340.0,1.1588967]
[1738202054109,0.49524112,104350.0,104340.0,0.9672067]
[1738202054412,0.85604112,104350.0,104340.0,0.5964067]
[1738202054911,0.49524112,104350.0,104340.0,0.5964067]
[1738202055297,0.49524112,104350.0,104340.0,0.66586322]
[1738202055497,0.4719846,104350.0,104340.0,0.85755322]
[1738202055710,0.27071014,104350.0,104340.0,0.43300337]
[1738202055895,0.34016666,104350.0,104340.0,0.43300337]
[1738202056098,0.27071014,104350.0,104340.0,0.43300337]
[1738202056397,0.34016666,104350.0,104340.0,0.36354685]
[1738202056798,0.34016666,104350.0,104340.0,0.43300337]
[1738202057407,0.34016666,104350.0,104340.0,0.79380337]
[1738202057707,0.27071014,104350.0,104340.0,0.79380337]
[1738202058607,0.34016666,104350.0,104340.0,0.79380337]
[1738202059010,0.34016666,104350.0,104340.0,0.43300337]
[1738202059314,0.34016666,104350.0,104340.0,0.36354685]
[1738202059816,0.65600596,104350.0,104340.0,0.55249]
[1738202060614,0.65600596,104350.0,104340.0,0.19169]
[1738202064712,0.59862672,104350.0,104340.0,0.36354685]
[1738202064909,0.4550634,104350.0,104340.0,0.36354685]
[1738202066516,0.4550634,104350.0,104340.0,0.17185685]
[1738202068813,0.40695472,104350.0,104330.0,1.06548809]
[1738202069121,0.19169,104340.0,104330.0,1.06548809]
[1738202069414,0.26114652,104340.0,104330.0,0.99603157]
[1738202069619,0.72410304,104340.0,104330.0,0.40114329]
[1738202069822,0.75690304,104340.0,104330.0,0.40114329]
[1738202071922,0.75690304,104340.0,104330.0,0.00014398]
[1738202074608,0.80302304,104340.0,104330.0,0.00014398]
[1738202076525,0.191708,104330.0,104320.0,0.03]
[1738202076716,0.191727,104320.0,104310.0,0.62547331]
[1738202077030,0.37672004,104320.0,104310.0,2.12547331]
[1738202077325,0.30726352,104320.0,104310.0,2.12547331]
[1738202077520,0.37672004,104320.0,104310.0,0.07293031]
[1738202077723,0.37672004,104320.0,104300.0,0.98376031]
[1738202077724,0.191745,104310.0,104300.0,0.43134329]
[1738202077918,0.62200152,104310.0,104300.0,0.43134329]
[1738202078318,0.26120152,104310.0,104300.0,0.98390729]
[1738202080425,0.26120152,104310.0,104300.0,0.98490729]
[1738202080631,0.50853652,104320.0,104310.0,0.191745]
[1738202080632,0.39331375,104320.0,104310.0,0.191745]
[1738202080824,0.39331375,104320.0,104310.0,0.552545]
[1738202081024,0.39331375,104320.0,104310.0,0.584045]
[1738202082030,0.32385723,104320.0,104310.0,0.65350152]
[1738202082329,0.39331375,104320.0,104310.0,0.616545]
[1738202083231,0.39331375,104320.0,104310.0,0.617545]
[1738202084729,0.30726952,104320.0,104310.0,0.617545]
[1738202089035,0.39331375,104320.0,104310.0,0.617545]
[1738202089532,0.39331375,104320.0,104310.0,0.62707123]
[1738202090636,0.32385723,104320.0,104310.0,0.62707123]
[1738202090829,0.34723375,104320.0,104310.0,0.62707123]
[1738202092840,0.27777723,104320.0,104310.0,0.69652775]
[1738202093336,0.191733,104320.0,104310.0,0.69652775]
[1738202094531,0.33064604,104320.0,104310.0,0.62707123]
[1738202094841,0.33064604,104320.0,104310.0,0.56307123]
[1738202095042,0.36264604,104320.0,104310.0,0.56307123]
[1738202095238,0.36264604,104320.0,104310.0,0.20227123]
[1738202096226,0.29318952,104320.0,104310.0,0.01052623]
[1738202096534,0.29318952,104320.0,104310.0,0.00952623]
[1738202096840,0.29318952,104320.0,104300.0,0.98390029]
[1738202097039,0.29318952,104320.0,104300.0,0.99390029]
[1738202097241,0.29318952,104320.0,104310.0,0.3608]
[1738202097541,0.37923375,104320.0,104310.0,0.3608]
[1738202098043,0.37923375,104320.0,104300.0,1.05335681]
[1738202098230,0.37923375,104320.0,104300.0,1.06335681]
[1738202098540,0.37923375,104320.0,104310.0,0.191745]
[1738202098734,0.37922775,104320.0,104300.0,0.99456089]
[1738202098943,0.26120152,104310.0,104300.0,1.00456089]
[1738202099633,0.26120152,104310.0,104300.0,1.00356089]
[1738202099940,0.26120152,104310.0,104300.0,0.99356089]
[1738202100639,0.191745,104310.0,104300.0,0.99356089]
[1738202101231,0.26120152,104310.0,104300.0,0.99356089]
[1738202101729,0.26120152,104310.0,104300.0,0.99456089]
[1738202105129,0.85475939,104320.0,104310.0,0.191745]
[1738202105334,0.82275939,104320.0,104310.0,0.191745]
[1738202105644,0.82275939,104320.0,104310.0,1.724045]
[1738202105849,0.79922287,104320.0,104310.0,1.79350152]
[1738202106038,0.85658569,104320.0,104310.0,1.82460152]
[1738202106241,0.92604221,104320.0,104310.0,1.755145]
[1738202106936,0.56524221,104320.0,104310.0,1.755145]
[1738202107746,0.56524221,104320.0,104310.0,2.115945]
[1738202108446,0.56524221,104320.0,104310.0,2.116945]
[1738202109540,0.42183516,104320.0,104310.0,2.28880421]
[1738202110050,0.42183516,104320.0,104310.0,2.25770421]
[1738202110241,0.45383516,104320.0,104310.0,1.89690421]
[1738202110445,0.45383516,104320.0,104310.0,0.39690421]
[1738202110643,0.45383516,104320.0,104310.0,0.36460421]
[1738202110843,0.45383516,104320.0,104310.0,0.72540421]
[1738202111241,0.11472564,104320.0,104310.0,0.79486073]
[1738202111742,0.11472564,104320.0,104310.0,0.82546073]
[1738202113050,0.25813269,104320.0,104310.0,0.82646073]
[1738202113655,0.44985969,104320.0,104310.0,0.82646073]
[1738202116144,0.51931621,104320.0,104310.0,0.75700421]
[1738202116748,0.44985969,104320.0,104310.0,0.82646073]
[1738202117955,0.27793314,104320.0,104310.0,1.47712068]
[1738202122564,0.27793314,104320.0,104310.0,0.88374398]
[1738202123659,0.08620614,104320.0,104310.0,0.88374398]
[1738202124264,0.27793314,104320.0,104310.0,0.88374398]
[1738202124767,0.27793314,104320.0,104310.0,0.81428746]
[1738202124961,0.27793314,104320.0,104310.0,0.23014246]
[1738202124962,0.41684618,104320.0,104310.0,0.23014246]
[1738202125261,0.34738966,104320.0,104310.0,0.23014246]
[1738202126158,0.40938966,104320.0,104310.0,0.23014246]
[1738202127265,0.5241153,104320.0,104310.0,0.001]
[1738202127663,0.59357182,104320.0,104310.0,0.001]
[1738202127858,0.95437182,104320.0,104310.0,0.001]
[1738202128966,0.59357182,104320.0,104310.0,0.001]
[1738202129165,0.5241153,104320.0,104310.0,0.001]
[1738202129366,0.8849153,104320.0,104310.0,0.001]
[1738202130266,0.95437182,104320.0,104310.0,0.001]
[1738202131466,1.02832235,104320.0,104310.0,0.001]
[1738202131669,0.66752235,104320.0,104310.0,0.001]
[1738202132164,1.02832235,104320.0,104310.0,0.001]
[1738202132766,0.66752235,104320.0,104310.0,0.001]
[1738202133070,0.73697887,104320.0,104310.0,0.001]
[1738202133772,1.09777887,104320.0,104310.0,0.001]
[1738202135376,1.01157273,104320.0,104310.0,0.001]
[1738202137582,1.0210233,104320.0,104310.0,0.001]
[1738202139472,0.95156678,104320.0,104310.0,0.001]
[1738202140784,0.94211621,104320.0,104310.0,0.001]
[1738202142999,0.58131621,104320.0,104310.0,0.001]
[1738202144188,0.94211621,104320.0,104310.0,0.001]
[1738202145384,1.01157273,104320.0,104310.0,0.001]
[1738202147305,0.88930225,104320.0,104300.0,0.4009532]
[1738202147518,0.76739804,104310.0,104300.0,0.4009532]
[1738202147730,0.69794152,104310.0,104300.0,0.4009532]
[1738202148601,0.69794152,104310.0,104300.0,0.4049532]
[1738202149008,0.69794152,104310.0,104300.0,0.4059532]
[1738202150289,0.69794152,104310.0,104300.0,0.4049532]
[1738202151298,0.69794152,104310.0,104300.0,0.4019532]
[1738202152198,0.84134857,104310.0,104300.0,0.00114398]
[1738202153287,0.91080509,104310.0,104300.0,0.00114398]
[1738202153896,0.91080509,104310.0,104290.0,0.17166676]
[1738202153897,0.191764,104300.0,104290.0,0.17166676]
[1738202154092,0.82543356,104300.0,104290.0,0.17166676]
[1738202154699,0.75597704,104300.0,104290.0,0.17166676]
[1738202154998,0.82543356,104300.0,104290.0,0.17166676]
[1738202155194,0.82543356,104300.0,104290.0,0.17266676]
[1738202155389,0.82543356,104300.0,104290.0,0.17666676]
[1738202156897,0.82543356,104300.0,104290.0,0.005]
[1738202157195,0.75597704,104300.0,104290.0,0.005]
[1738202160794,1.12110846,104300.0,104290.0,0.005]
[1738202164302,1.09239452,104300.0,104290.0,0.005]
[1738202166192,1.16185104,104300.0,104290.0,0.005]
[1738202166395,1.16185104,104300.0,104280.0,0.00014398]
[1738202166396,0.191782,104290.0,104280.0,0.00014398]
[1738202166697,0.76777504,104290.0,104280.0,0.00014398]
[1738202166900,0.1918,104280.0,104270.0,0.32]
[1738202167098,0.191819,104270.0,104260.0,0.17166676]
[1738202167296,0.69153204,104270.0,104260.0,0.17166676]
[1738202167693,0.72233204,104270.0,104260.0,0.17166676]
[1738202168197,0.72233204,104270.0,104260.0,0.17866676]
[1738202168902,0.72233204,104270.0,104260.0,0.18066676]
[1738202169099,0.72233204,104270.0,104260.0,0.009]
[1738202170498,0.79178856,104270.0,104260.0,0.009]
[1738202170699,0.7956192,104270.0,104260.0,0.009]
[1738202171108,0.6895191,104270.0,104260.0,0.009]
[1738202173806,0.69898583,104270.0,104260.0,0.007]
[1738202174002,0.69898583,104270.0,104260.0,0.009]
[1738202174003,0.81360331,104270.0,104260.0,0.009]
[1738202174508,0.81360331,104270.0,104260.0,0.005]
[1738202174509,0.85904331,104270.0,104260.0,0.005]
[1738202174710,0.85904331,104270.0,104260.0,0.004]
[1738202177411,0.78280331,104270.0,104260.0,0.004]
[1738202177604,0.82824331,104270.0,104260.0,0.067]
[1738202177806,0.46744331,104270.0,104260.0,0.067]
[1738202178005,0.78280331,104270.0,104260.0,0.067]
[1738202178206,0.82824331,104270.0,104260.0,0.0995]
[1738202178402,0.71362583,104270.0,104260.0,0.0995]
[1738202178702,0.71362583,104270.0,104260.0,0.4603]
[1738202178703,0.30738583,104270.0,104260.0,0.4603]
[1738202178902,0.04544,104270.0,104260.0,0.7582371]
[1738202179607,0.10624408,104280.0,104260.0,0.5664001]
[1738202179908,0.00014398,104280.0,104270.0,0.6587191]
[1738202180213,0.3432851,104290.0,104280.0,0.1918]
[1738202180803,0.36223907,104300.0,104290.0,0.191782]
[1738202180804,0.23860707,104300.0,104290.0,0.191782]
[1738202181009,0.04683907,104300.0,104290.0,0.253082]
[1738202181603,0.32460857,104300.0,104290.0,0.253082]
[1738202182206,0.22250847,104300.0,104290.0,0.253082]
[1738202182906,0.22250847,104300.0,104290.0,0.613882]
[1738202183112,0.22350847,104300.0,104290.0,0.613882]
[1738202183406,0.22350847,104300.0,104290.0,0.645782]
[1738202183597,0.17810847,104300.0,104290.0,0.7518821]
[1738202183802,0.22350847,104300.0,104290.0,0.7518821]
[1738202184507,0.17810847,104300.0,104290.0,0.7518821]
[1738202186006,0.00643907,104300.0,104290.0,0.7518821]
[1738202187303,0.00643907,104300.0,104290.0,0.76161918]
[1738202189012,0.00643907,104300.0,104290.0,0.77161918]
[1738202196709,0.19190398,104310.0,104300.0,0.191764]
[1738202196911,0.19190398,104310.0,104300.0,0.6686641]
[1738202197307,0.19190398,104310.0,104300.0,0.562564]
[1738202198418,0.19590398,104310.0,104300.0,0.563564]
[1738202198616,0.19590398,104310.0,104300.0,0.202764]
[1738202204024,0.30200408,104310.0,104300.0,0.202764]
[1738202204416,0.30200408,104310.0,104300.0,0.011]
[1738202204722,0.33330408,104310.0,104300.0,0.001]
[1738202205116,0.80020418,104310.0,104300.0,0.001]
[1738202205728,0.69410408,104310.0,104300.0,0.001]
[1738202206023,0.80020418,104310.0,104300.0,0.001]
[1738202207525,0.69410408,104310.0,104300.0,0.001]
[1738202207720,0.33330408,104310.0,104300.0,0.001]
[1738202208022,0.69410408,104310.0,104300.0,0.001]
[1738202208828,0.33330408,104310.0,104300.0,0.001]
[1738202209128,0.69410408,104310.0,104300.0,0.001]
[1738202211118,0.95161298,104310.0,104300.0,0.001]
[1738202212217,0.96145733,104310.0,104300.0,0.001]
[1738202212619,0.60065733,104310.0,104300.0,0.001]
[1738202214021,0.64589733,104310.0,104300.0,0.001]
[1738202214823,0.53144893,104310.0,104300.0,0.001]
[1738202219230,0.56005783,104310.0,104300.0,0.001]
[1738202220125,0.52875783,104310.0,104300.0,0.001]
[1738202220528,0.48351783,104310.0,104300.0,0.001]
[1738202220733,0.41277338,104310.0,104300.0,0.553564]
[1738202221030,0.41277338,104310.0,104300.0,0.584664]
[1738202221620,0.36757338,104310.0,104300.0,0.584664]
[1738202221821,0.17581338,104310.0,104300.0,0.6907641]
[1738202222016,0.17581338,104310.0,104300.0,0.7407641]
[1738202222624,0.17581338,104310.0,104300.0,2.25051229]
[1738202223727,0.20028096,104330.0,104320.0,0.191727]
[1738202223929,0.20028096,104330.0,104320.0,1.0194271]
[1738202224326,0.20028096,104330.0,104320.0,1.1153271]
[1738202226136,0.39198896,104330.0,104320.0,1.009227]
[1738202227038,0.191708,104330.0,104320.0,1.18020747]
[1738202227538,0.2978081,104330.0,104320.0,1.18020747]
[1738202228135,0.2978081,104330.0,104320.0,0.45860747]
[1738202229838,0.2978081,104330.0,104320.0,0.23458047]
[1738202230039,0.2978081,104330.0,104320.0,0.20318047]
[1738202230040,0.3429681,104330.0,104320.0,0.20318047]
[1738202230240,0.3747681,104330.0,104320.0,0.20318047]
[1738202230440,0.3747681,104330.0,104320.0,0.17098047]
[1738202230935,0.7355681,104330.0,104320.0,0.17098047]
[1738202231136,0.3747681,104330.0,104320.0,0.17098047]
[1738202231345,0.3747681,104330.0,104310.0,0.72366145]
[1738202231346,0.191727,104320.0,104310.0,0.72366145]
[1738202233132,0.191727,104320.0,104310.0,0.82976155]
[1738202233942,0.191711,104330.0,104320.0,0.191727]
[1738202234250,0.236871,104330.0,104320.0,0.585227]
[1738202234450,0.191711,104330.0,104320.0,0.585227]
[1738202234650,0.236831,104330.0,104320.0,0.616327]
[1738202235044,0.236831,104330.0,104320.0,0.7224271]
[1738202236156,0.49507039,104330.0,104320.0,0.7224271]
[1738202236757,0.25823939,104330.0,104320.0,0.7224271]
[1738202237255,0.25823939,104330.0,104320.0,0.7324271]
[1738202238348,0.25823939,104330.0,104320.0,2.2324271]
[1738202239251,0.191708,104330.0,104320.0,2.2324271]
[1738202241149,0.191708,104330.0,104320.0,2.2638271]
[1738202241549,0.191708,104330.0,104320.0,2.27342832]
[1738202242862,0.191708,104330.0,104320.0,0.77342832]
[1738202243055,0.191708,104330.0,104320.0,0.63592822]
[1738202243260,0.224708,104330.0,104320.0,0.27512822]
[1738202243462,0.224708,104330.0,104320.0,0.234427]
[1738202244662,0.224708,104330.0,104320.0,0.595227]
[1738202245161,0.191708,104330.0,104320.0,0.7013271]
[1738202245354,0.191708,104330.0,104320.0,0.7333271]
[1738202245756,0.23835444,104340.0,104330.0,0.191708]
[1738202246153,0.23835444,104340.0,104330.0,0.552508]
[1738202246562,0.23835444,104340.0,104330.0,0.191708]
[1738202246754,0.23835444,104340.0,104330.0,0.552508]
[1738202246956,0.32423148,104340.0,104330.0,0.192708]
[1738202248760,0.43033158,104340.0,104330.0,0.192708]
[1738202250557,0.32423148,104340.0,104330.0,0.192708]
[1738202250767,0.38182077,104340.0,104330.0,0.192708]
[1738202250969,0.38182077,104340.0,104330.0,0.001]
[1738202254972,0.33674077,104340.0,104330.0,0.001]
[1738202255273,0.33674077,104340.0,104330.0,0.2988081]
[1738202255274,0.19008877,104340.0,104330.0,0.2988081]
[1738202255468,0.19008877,104340.0,104330.0,0.192708]
[1738202255665,0.38177877,104340.0,104330.0,0.192708]
[1738202256466,0.41021844,104340.0,104330.0,0.192708]
[1738202257776,0.41021844,104340.0,104330.0,0.20241479]
[1738202258278,0.51631854,104340.0,104330.0,0.192708]
[1738202259175,0.41021844,104340.0,104330.0,0.192708]
[1738202259875,0.35321284,104340.0,104330.0,0.36368847]
[1738202261971,0.35321284,104340.0,104330.0,1.86368847]
[1738202263078,0.35321284,104340.0,104330.0,0.36368847]
[1738202265381,0.35321284,104340.0,104330.0,0.39468847]
[1738202266978,0.35177438,104340.0,104330.0,0.39468847]
[1738202267173,0.23687398,104340.0,104330.0,0.223708]
[1738202268280,0.23687398,104340.0,104330.0,0.584508]
[1738202268979,0.04518398,104340.0,104330.0,0.584508]
[1738202269877,0.04518398,104340.0,104330.0,0.223708]
[1738202270180,0.23687398,104340.0,104330.0,0.584508]
[1738202275188,0.23687398,104340.0,104330.0,0.98536514]
[1738202275189,0.35186715,104340.0,104330.0,0.98536514]
[1738202275581,0.30682715,104340.0,104330.0,0.98536514]
[1738202280588,0.30682715,104340.0,104330.0,0.81356922]
[1738202289100,0.36432374,104340.0,104330.0,0.584508]
[1738202290285,0.43380363,104340.0,104330.0,0.223708]
[1738202290490,0.43380363,104340.0,104330.0,0.192708]
[1738202290801,0.50328352,104340.0,104330.0,0.001]
[1738202291095,0.53408352,104340.0,104330.0,0.001]
[1738202291593,0.46460363,104340.0,104330.0,0.001]
[1738202292088,0.53408352,104340.0,104330.0,0.001]
[1738202293403,0.50533305,104340.0,104330.0,0.17268218]
[1738202294488,0.86613305,104340.0,104330.0,0.17268218]
[1738202295693,0.87583253,104340.0,104330.0,0.17268218]
[1738202296902,1.04832229,104340.0,104330.0,0.001]
[1738202298208,0.92611218,104340.0,104320.0,0.4007434]
[1738202298397,0.79986778,104330.0,104320.0,0.4007434]
[1738202300501,0.90815978,104330.0,104310.0,0.63006235]
[1738202300700,0.72448678,104320.0,104310.0,0.63006235]
[1738202301602,0.72448678,104320.0,104310.0,0.00014398]
[1738202302006,0.76924678,104320.0,104310.0,0.00014398]
[1738202305911,1.08547583,104320.0,104310.0,0.00014398]
[1738202306612,1.04071583,104320.0,104310.0,0.00014398]
[1738202306802,1.08547583,104320.0,104310.0,0.00014398]
[1738202308213,1.09487102,104320.0,104310.0,0.00014398]
[1738202309807,1.03692255,104320.0,104310.0,0.00014398]
[1738202314217,0.95113173,104320.0,104310.0,0.00014398]
[1738202318123,0.77864197,104320.0,104310.0,0.00014398]
[1738202322012,0.92193258,104320.0,104310.0,0.00014398]
[1738202324919,0.77864197,104320.0,104310.0,0.00014398]
[1738202326221,0.191764,104300.0,104290.0,0.0624]
[1738202326421,0.73612378,104300.0,104290.0,0.03]
[1738202327420,0.73612378,104300.0,104290.0,0.035]
[1738202328709,0.73612378,104300.0,104290.0,0.005]
[1738202332719,0.74579963,104300.0,104290.0,0.005]
[1738202333516,0.88945795,104300.0,104290.0,0.005]
[1738202334925,0.92045795,104300.0,104290.0,0.005]
[1738202335134,1.15897384,104300.0,104280.0,0.00014398]
[1738202335429,0.75624178,104290.0,104280.0,0.00014398]
[1738202336326,0.32596189,104290.0,104280.0,0.00314398]
[1738202336725,0.32596189,104290.0,104280.0,0.03414398]
[1738202337428,0.32596189,104290.0,104280.0,0.04114398]
[1738202337731,0.49835187,104290.0,104280.0,0.04114398]
[1738202337933,0.85915187,104290.0,104280.0,0.04114398]
[1738202338226,0.85915187,104290.0,104280.0,0.03414398]
[1738202338919,0.85915187,104290.0,104280.0,0.03214398]
[1738202339821,0.49935187,104290.0,104280.0,0.03214398]
[1738202340123,0.86015187,104290.0,104280.0,0.03214398]
[1738202340820,0.86015187,104290.0,104280.0,0.03114398]
[1738202341025,0.86115187,104290.0,104280.0,0.03114398]
[1738202341417,0.86015187,104290.0,104280.0,0.03114398]
[1738202341621,0.86115187,104290.0,104280.0,0.03114398]
[1738202341824,1.00466014,104290.0,104280.0,0.03114398]
[1738202344529,1.00366014,104290.0,104280.0,0.03114398]
[1738202344731,1.00466014,104290.0,104280.0,0.03114398]
[1738202344921,0.64386014,104290.0,104280.0,0.03114398]
[1738202345121,0.68834014,104290.0,104280.0,0.03114398]
[1738202347527,0.38737814,104290.0,104280.0,0.22294398]
[1738202347729,0.31789825,104290.0,104280.0,0.65322387]
[1738202347934,0.31789825,104290.0,104280.0,0.70322387]
[1738202348435,0.31789825,104290.0,104280.0,2.20322387]
[1738202348932,0.31789825,104290.0,104280.0,2.27270376]
[1738202349233,0.31789825,104290.0,104280.0,2.20322387]
[1738202349528,0.31789825,104290.0,104280.0,2.27270376]
[1738202349734,0.31789825,104290.0,104280.0,2.20322387]
[1738202352023,0.31689825,104290.0,104280.0,2.28227866]
[1738202352227,0.04444,104300.0,104290.0,0.191782]
[1738202352427,0.11391989,104300.0,104290.0,0.616182]
[1738202352628,0.30568389,104300.0,104290.0,0.616182]
[1738202352837,0.39175144,104300.0,104290.0,0.616182]
[1738202353132,0.46123133,104300.0,104290.0,0.616182]
[1738202353735,0.39175144,104300.0,104290.0,0.616182]
[1738202354436,0.39275144,104300.0,104290.0,0.616182]
[1738202354636,0.39375144,104300.0,104290.0,0.616182]
[1738202356837,0.46323133,104300.0,104290.0,0.585382]
[1738202357937,0.46323133,104300.0,104290.0,0.552582]
[1738202361441,0.39375144,104300.0,104290.0,0.552582]
[1738202374143,0.50850818,104300.0,104290.0,0.552582]
[1738202374744,0.46406818,104300.0,104290.0,0.552582]
[1738202374945,0.43882829,104300.0,104290.0,0.62206189]
[1738202375140,0.43882829,104300.0,104290.0,0.68546189]
[1738202376550,0.20282429,104300.0,104290.0,0.68546189]
[1738202376747,0.20282429,104300.0,104290.0,0.69546189]
[1738202378839,0.11675674,104300.0,104290.0,0.69546189]
[1738202383264,0.26046885,104300.0,104290.0,0.69546189]
[1738202388169,0.002,104300.0,104290.0,1.51169144]
[1738202392671,0.20110271,104310.0,104290.0,1.31990944]
[1738202392868,0.20110271,104310.0,104300.0,0.72192378]
[1738202393474,0.20110271,104310.0,104300.0,2.22192378]
[1738202393772,0.20110271,104310.0,104300.0,2.15244389]
[1738202394076,0.20110271,104310.0,104300.0,2.22192378]
[1738202394269,0.20110271,104310.0,104300.0,0.71244389]
[1738202394972,0.20210271,104310.0,104300.0,0.71244389]
[1738202397275,0.20210271,104310.0,104300.0,0.78192378]
[1738202399682,0.20210271,104310.0,104300.0,0.79157454]
[1738202401282,0.00114398,104310.0,104300.0,1.02048572]
[1738202402885,0.00114398,104310.0,104300.0,0.95100583]
[1738202403186,0.00114398,104310.0,104300.0,1.02048572]
[1738202403786,0.39269073,104320.0,104300.0,1.02048572]
[1738202403787,0.39269073,104320.0,104310.0,0.26122489]
[1738202403984,0.39269073,104320.0,104310.0,0.62202489]
[1738202405082,0.39269073,104320.0,104310.0,0.62302489]
[1738202405684,0.39269073,104320.0,104310.0,0.26222489]
[1738202405888,0.39269073,104320.0,104310.0,0.62302489]
[1738202408083,0.46217062,104320.0,104310.0,0.553545]
[1738202408287,0.46217062,104320.0,104310.0,0.3618]
[1738202408589,0.46217062,104320.0,104310.0,0.553545]
[1738202409184,0.51968074,104320.0,104310.0,0.553545]
[1738202411588,0.45020085,104320.0,104310.0,0.62302489]
[1738202411791,0.25846885,104320.0,104310.0,0.73250478]
[1738202411990,0.14371211,104320.0,104310.0,2.29390478]
[1738202412294,0.39648709,104330.0,104320.0,0.191727]
[1738202412485,0.39648709,104330.0,104320.0,0.65420689]
[1738202412686,0.53544687,104330.0,104320.0,0.3608]
[1738202412881,0.81065887,104330.0,104310.0,1.8618]
[1738202413087,0.235647,104320.0,104310.0,0.62302489]
[1738202413394,0.47041009,104330.0,104320.0,0.191727]
[1738202413599,0.44041009,104330.0,104320.0,0.65420689]
[1738202413795,0.24869909,104330.0,104320.0,0.65420689]
[1738202413996,0.20477909,104330.0,104320.0,0.65420689]
[1738202414292,0.20477909,104330.0,104320.0,0.72368678]
[1738202414689,0.20477909,104330.0,104320.0,0.65420689]
[1738202414892,0.191745,104310.0,104300.0,0.00979474]
[1738202415097,0.30514489,104310.0,104300.0,0.00014398]
[1738202415296,0.73542478,104310.0,104300.0,0.00014398]
[1738202415597,0.69844489,104310.0,104300.0,0.00014398]
[1738202415893,0.69844489,104310.0,104290.0,0.22891118]
[1738202415894,0.191764,104300.0,104290.0,0.22891118]
[1738202416102,0.191764,104300.0,104280.0,0.62991837]
[1738202416103,0.56923967,104300.0,104280.0,0.62991837]
[1738202416284,0.191819,104270.0,104260.0,0.28034939]
[1738202416494,0.191837,104260.0,104250.0,1.03077551]
[1738202416690,0.191855,104250.0,104240.0,1.14530613]
[1738202416897,0.69161478,104250.0,104240.0,0.48218634]
[1738202417089,1.06109467,104250.0,104240.0,0.45998634]
[1738202417285,0.69161478,104250.0,104240.0,0.45998634]
[1738202417492,0.62213489,104250.0,104240.0,0.45998634]